Workbook

Sheet Example 1
B1: 3B6BE86B-0759-4766-81C8-91255F8A8C18 | G1: https://trantuanlam.github.io/MinimumCurvature/
B3: Well Directional Survey Calculation using Minimum Curvature Method
B4: Well | C4: WellA
H6: Input cell
G7: Calculated Cell
B8: Planned well survey
F9: Local Coordinate
B10: MD | C10: Inclination | D10: Azimuth | E10: TVD | F10: N/S | G10: E/W | H10: DLS | I10: Remark
F11: (+)/(-) | G11: (+)/(-) | H11: /30m
B12: m | C12: deg | D12: deg | E12: m | F12: m | G12: m
B13: 0 | C13: 0 | D13: 300 | E13: 0 | F13: 0 | G13: 0 | H13: zzz
B14: 200 | C14: 0 | D14: 300 | E14: =E13+mcVertical(C13,C14,D13,D14,B14-B13) -> 200 | F14: =F13+mcNorth(C13,C14,D13,D14,B14-B13) -> 0 | G14: =G13+mcEast(C13,C14,D13,D14,B14-B13) -> 0 | H14: =DLS30Deg(C13,C14,D14-D13,B14-B13) -> 0
B15: 300 | C15: 5 | D15: 300 | E15: =E14+mcVertical(C14,C15,D14,D15,B15-B14) -> 299.8731244 | F15: =F14+mcNorth(C14,C15,D14,D15,B15-B14) -> 2.180277391 | G15: =G14+mcEast(C14,C15,D14,D15,B15-B14) -> -3.776351216 | H15: =DLS30Deg(C14,C15,D15-D14,B15-B14) -> 1.5
B16: 330 | C16: 3.5 | D16: 300 | E16: 329.7897756 | F16: 3.291872999 | G16: -5.701691286 | H16: 1.5
B17: 400 | C17: 0 | D17: 0 | E17: 399.7462488 | F17: 4.360554782 | G17: -7.552702432 | H17: 1.5
B18: 2030 | C18: 0 | D18: 270.1267956 | E18: 2029.746249 | F18: 4.360554782 | G18: -7.552702432 | H18: 0
B19: 2229.814836 | C19: 10 | D19: 270.1267956 | E19: 2228.548177 | F19: 4.399045291 | G19: -24.94557485 | H19: 1.50139002
B20: 2312.661537 | C20: 14.13307687 | D20: 270.1267956 | E20: 2309.546857 | F20: 4.437363684 | G20: -42.26067255 | H20: 1.496647463
B21: 2350.425938 | C21: 16.02129691 | D21: 270.1267956 | E21: 2346.009617 | F21: 4.459101609 | G21: -52.08348264 | H21: 1.5
B22: 2881.803889 | C22: 16.02129691 | D22: 270.1267956 | E22: 2856.74841 | F22: 4.783654477 | G22: -198.7405893 | H22: 0
B23: 3517.028792 | C23: 36 | D23: 191.3099976 | E23: 3438.231262 | F23: -184.3469788 | G23: -327.2679619 | H23: 1.7
B24: 3572.028792 | C24: 36 | D24: 191.3099976 | E24: 3482.727197 | F24: -216.0473689 | G24: -333.6080774 | H24: 0
B25: 3918.538308 | C25: 70.65095165 | D25: 191.3097854 | E25: 3686.546857 | F25: -484.431328 | G25: -387.2845494 | H25: 3
B26: 3950 | C26: 73.65289257 | D26: 191.3097734 | E26: 3696.188579 | F26: -513.793945 | G26: -393.1569912 | H26: 2.862472498
I27: <<< Last row of survey should be empty
B31: Example: Interpolation from Planned survey
F32: Local Coordinate
B33: MD | C33: Inclination | D33: Azimuth | E33: TVD | F33: N/S | G33: E/W | H33: DLS | I33: Remark
F34: (+)/(-) | G34: (+)/(-) | H34: /30m
B35: m | C35: deg | D35: deg | E35: m | F35: m | G35: m
B36: =mcGetMDfromTVD($B$13:$D$27, E36) -> 1500.253751 | C36: =mcGetInclinationfromTVD($B$13:$D$27, E36) -> 0 | D36: =mcGetAzimuthfromTVD($B$13:$D$27, E36) -> 0 | E36: 1500 | F36: =mcGetNorthfromtvD($B$13:$D$27, E36) -> 4.360554782 | G36: =mcGetEastfromtvd($B$13:$D$27, E36) -> -7.552702432 | H36: =mcGetDLS30fromTVD($B$13:$D$27, E36) -> 0
B37: =mcGetMDfromTVD($B$13:$D$27, E37) -> 2926.762585 | C37: =mcGetInclinationfromTVD($B$13:$D$27, E37) -> 15.72305837 | D37: =mcGetAzimuthfromTVD($B$13:$D$27, E37) -> 260.8658278 | E37: 2900 | F37: =mcGetNorthfromtvD($B$13:$D$27, E37) -> 3.830199509 | G37: =mcGetEastfromtvd($B$13:$D$27, E37) -> -210.9611511 | H37: =mcGetDLS30fromTVD($B$13:$D$27, E37) -> 1.7
B38: =B36 -> 1500.253751 | C38: =mcGetInclinationfromMD(B$13:D$27, B38) -> 0 | D38: =mcGetAzimuthfromMD(B$13:D$27, B38) -> 0 | E38: =mcGetTVDfromMD(B$13:D$27, B38) -> 1500 | F38: =mcGetNorthfromMD(B$13:D$27,B38) -> 4.360554782 | G38: =mcGetEastfromMD(B$13,B38) -> -7.552702432 | H38: =mcGetDLS30fromMD(B$13,B38) -> 0
B39: 1900 | C39: =mcGetInclinationfromMD(B$13:D$27, B39) -> 0 | D39: =mcGetAzimuthfromMD(B$13:D$27, B39) -> 0 | E39: =mcGetTVDfromMD(B$13:D$27, B39) -> 1899.746249 | F39: =mcGetNorthfromMD(B$13:D$27,B39) -> 4.360554782 | G39: =mcGetEastfromMD(B$13,B39) -> -7.552702432 | H39: =mcGetDLS30fromMD(B$13,B39) -> 0
B40: 3500 | C40: =mcGetInclinationfromMD(B$13:D$27, B40) -> 35.14596089 | D40: =mcGetAzimuthfromMD(B$13:D$27, B40) -> 192.0822055 | E40: =mcGetTVDfromMD(B$13:D$27, B40) -> 3424.380523 | F40: =mcGetNorthfromMD(B$13:D$27,B40) -> -174.6464669 | G40: =mcGetEastfromMD(B$13,B40) -> -325.2604812 | H40: =mcGetDLS30fromMD(B$13,B40) -> 1.7
B41: 2201 | C41: =mcGetInclinationfromMD(B$13:D$27, B41) -> 8.557923115 | D41: =mcGetAzimuthfromMD(B$13:D$27, B41) -> 270.1267956 | E41: =mcGetTVDfromMD(B$13:D$27, B41) -> 2200.111134 | F41: =mcGetNorthfromMD(B$13:D$27,B41) -> 4.388763645 | G41: =mcGetEastfromMD(B$13,B41) -> -20.29956309 | H41: =mcGetDLS30fromMD(B$13,B41) -> 1.50139002
B46: Test Data | D46: Minimum Curvature Method‎ (drillingformulas.com)
F47: Local Coordinate
B48: MD | C48: Inclination | D48: Azimuth | E48: TVD | F48: N/S | G48: E/W | H48: DLS | I48: Remark
F49: (+)/(-) | G49: (+)/(-) | H49: /30ft
B50: ft | C50: deg | D50: deg | E50: ft | F50: ft | G50: ft
B51: 3500 | C51: 15 | D51: 20 | E51: 0 | F51: 0 | G51: 0 | H51: 0
B52: 3600 | C52: 25 | D52: 45 | E52: =E51+ mcVertical(C51,C52,D51,D52,B52-B51) -> 94.01234323 | F52: =F51+mcNorth(C51,C52,D51,D52,B52-B51) -> 27.21832857 | G52: =G51+mcEast(C51,C52,D51,D52,B52-B51) -> 19.45077375 | H52: =DLS30Deg(C51,C52,D52-D51,B52-B51) -> 3.885495217

Sheet Example 2- MD.TVD
E1: https://trantuanlam.github.io/MinimumCurvature/
B3: Example how to convert Measure Depth to TVD vice versa
B6: Interpolation: calculate MD from TVD
B7: Remarks | E7: TVD | F7: MD | I7: This is an example how to calculate MD of a point when TVD is known
B8: 30in shoe | E8: 180 | F8: =mcGetMDfromTVD('Example 1'!$B$13:G23,E8) -> 180 | G8: =mcGetMDfromTVD('Example 1'!$B$13,E8) -> 180
B9: 26in hole | E9: 605 | F9: =mcGetMDfromTVD('Example 1'!$B$13:G24,E9) -> 605.2537512 | G9: =mcGetMDfromTVD('Example 1'!$B$13,E9) -> 605.2537512
B10: 20in casing shoe TVD/MD | E10: 600 | F10: =mcGetMDfromTVD('Example 1'!$B$13:G25,E10) -> 600.2537512 | G10: =mcGetMDfromTVD('Example 1'!$B$13,E10) -> 600.2537512 | I10: =mcGetMDfromTVD('Example 1'!$B$13:G28,E13)
B11: 17 1/2" section TD | E11: 2003 | F11: =mcGetMDfromTVD('Example 1'!$B$13:G26,E11) -> 2003.253751 | G11: =mcGetMDfromTVD('Example 1'!$B$13,E11) -> 2003.253751 | I11: =mcGetMDfromTVD('Example 1'!$B$13,E13)
B12: 13 3/8" shoe | E12: 2000 | F12: =mcGetMDfromTVD('Example 1'!B13:G27,E12) -> 2000.253751 | G12: =mcGetMDfromTVD('Example 1'!$B$13,E12) -> 2000.253751 | I12: Using 2 above formulae will produce the same result.
B13: 12 1/4" hole | E13: 3000 | F13: =mcGetMDfromTVD('Example 1'!$B$13:G28,E13) -> 3030.774117 | G13: =mcGetMDfromTVD('Example 1'!$B$13,E13) -> 3030.774117 | I13: Internal calculation will always track down the data range until empty row found.
B14: 9 5/8" shoe | E14: 3500 | F14: =mcGetMDfromTVD('Example 1'!$B$13:G29,E14) -> 3593.681527 | G14: =mcGetMDfromTVD('Example 1'!$B$13,E14) -> 3593.681527
B15: 8 1/2" section TD | E15: ='Example 1'!E26 -> 3696.188579 | F15: =mcGetMDfromTVD('Example 1'!$B$13:G30,E15) -> 3950 | G15: =mcGetMDfromTVD('Example 1'!$B$13,E15) -> 3950
B16: a Point of interest | E16: =E15-5 -> 3691.188579 | F16: =mcGetMDfromTVD('Example 1'!$B$13:G31,E16) -> 3933.04864 | G16: =mcGetMDfromTVD('Example 1'!$B$13,E16) -> 3933.04864
B20: Calculate TVD from MD
B21: MD | C21: TVD | E21: This is an example how TVD is calculated when MD is known
B22: 0 | C22: =mcGetTVDfromMD('Example 1'!$B$13,B22) -> 0
B23: 500 | C23: =mcGetTVDfromMD('Example 1'!$B$13,B23) -> 499.7462488
B24: =B23+500 -> 1000 | C24: =mcGetTVDfromMD('Example 1'!$B$13,B24) -> 999.7462488
B25: =B24+500 -> 1500 | C25: =mcGetTVDfromMD('Example 1'!$B$13,B25) -> 1499.746249
B26: =B25+500 -> 2000 | C26: =mcGetTVDfromMD('Example 1'!$B$13,B26) -> 1999.746249
B27: =B26+500 -> 2500 | C27: =mcGetTVDfromMD('Example 1'!$B$13,B27) -> 2489.774098
B28: 5000 | C28: =mcGetTVDfromMD('Example 1'!$B$13,B28) ->  | E28: Given MD out of range

Sheet Help
E2: Short help | I2: https://trantuanlam.github.io/MinimumCurvature/
E5: This workbook is used to
E6: 1) Make survey calculation (TVD/North/East/Dogleg) from directional survey (MD/Inclination/Azimuth) for a well
E7: 2) Interpolate survey values for any point given Measure Depth or True Vertical Depth
E8: Use the same table format for planned and actual survey
E11: VBA functions is stored in this work book. Macro should be enable for calculation.
E12: These functions can be used as normal Excel function to carry out survey calculation.
E14: Minimum curvature method is applied for all calculations.
E16: Function name has prefix mc; for example function mcVertical calculate vertical distance between 2 survey stations.
E20: Cell color coding in this workbook
F21: Input cell | G21: Type in these cells
F23: Formula/output cells
E29: Standard survey data range format
E30: Interpolation functions use entire survey table to make calculation.
E31: First 6 columns of survey table should be MD, Inclination, Azimuth, TVD, North, East to make these functions operate correctly
E32: Empty row in data range is required at the end of data
E33: Cells outside this data range are free to use
E35: MD | F35: Incl, deg | G35: Azimuth, deg | H35: TVD | I35: North/ South | J35: East/ West
E37: 0 | F37: 0 | G37: 0 | H37: 0 | I37: 0 | J37: 0
E38: 280 | F38: 0 | G38: 0 | H38: =H37+ mcVertical(F37,F38,G37,G38,E38-E37) -> 280 | I38: =I37+mcNorth(F37,F38,G37,G38,E38-E37) -> 0 | J38: =J37+mcEast(F37,F38,G37,G38,E38-E37) -> 0
E39: 600 | F39: 30 | G39: 112 | H39: =H38+ mcVertical(F38,F39,G38,G39,E39-E38) -> 585.5774907 | I39: =I38+mcNorth(F38,F39,G38,G39,E39-E38) -> -30.67250387 | J39: =J38+mcEast(F38,F39,G38,G39,E39-E38) -> 75.91711108
E40: 800 | F40: 40 | G40: 150 | H40: =H39+ mcVertical(F39,F40,G39,G40,E40-E39) -> 751.1227153 | I40: =I39+mcNorth(F39,F40,G39,G40,E40-E39) -> -106.1357525 | J40: =J39+mcEast(F39,F40,G39,G40,E40-E39) -> 155.5403206
E41: 2000 | F41: =F40 -> 40 | G41: =G40 -> 150 | H41: =H40+ mcVertical(F40,F41,G40,G41,E41-E40) -> 1670.376047 | I41: =I40+mcNorth(F40,F41,G40,G41,E41-E40) -> -774.1402315 | J41: =J40+mcEast(F40,F41,G40,G41,E41-E40) -> 541.2128864
L42: << Empty row is required at the end of data. This is End of data signature
E44: If MD is given in meter then the TVD, North, East are result in meter.
E45: If MD is given in ft then the TVD, North, East are result in ft.
E49: Copy/Paste
E50: mcXXXXX functions can be used as normal Excel function, that mean formula can be copy/ paste between cells.
E51: Function can be copy/paste make it easy to add a row to survey sheet or make MD-TVD convert for hundreds values
